fUST/lending_fUST_20250529
["ID","MTS","AMOUNT","RATE_DAILY","PERIOD"]
[362845872,1748488239778,-636.41,0.00019178,2]
[362845873,1748488239789,-436.82395891,0.00019178,2]
[362845874,1748488239799,-430.0,0.00019178,2]
[362845875,1748488239819,-430.0,0.00019178,2]
[362845876,1748488239830,-430.0,0.00019178,2]
[362845877,1748488239842,-430.0,0.00019178,2]
[362845878,1748488239853,-430.0,0.00019178,2]
[362845879,1748488239865,-430.0,0.00019178,2]
[362845880,1748488239875,-430.0,0.00019178,2]
[362845881,1748488239886,-430.0,0.00019178,2]
[362845882,1748488239896,-452.6,0.00019178,2]
[362845883,1748488239907,-799.61,0.00019178,2]
[362845884,1748488239917,-760.73,0.00019178,2]
[362845885,1748488239929,-430.0,0.00019178,2]
[362845886,1748488239939,-430.0,0.00019178,2]
[362845887,1748488239949,-433.77926176,0.00019178,2]
[362845888,1748488239959,-430.0,0.00019178,2]
[362845889,1748488239968,-432.01289897,0.00019178,2]
[362845890,1748488239977,-430.0,0.00019178,2]
[362845891,1748488239987,-433.67564519,0.00019178,2]
[362845892,1748488239997,-430.0,0.00019178,2]
[362845893,1748488240006,-430.0,0.00019178,2]
[362845895,1748488240016,-433.28171749,0.00019178,2]
[362845897,1748488240025,-430.0,0.00019178,2]
[362845899,1748488240035,-430.0,0.00019178,2]
[362845901,1748488240044,-430.0,0.00019178,2]
[362845903,1748488240057,-441.35,0.00019178,2]
[362845905,1748488240070,-430.0,0.00019178,2]
[362845907,1748488240079,-430.0,0.00019178,2]
[362845909,1748488240089,-430.0,0.00019178,2]
[362845911,1748488240098,-430.0,0.00019178,2]
[362845913,1748488240108,-430.0,0.00019178,2]
[362845915,1748488240120,-452.61105952,0.00019178,2]
[362845917,1748488240134,-163.47970621,0.00019178,2]
[362845920,1748488240148,-406.34316315,0.00019178,2]
[362845922,1748488240161,-430.0,0.00019178,2]
[362845925,1748488240173,-434.20529704,0.00019178,2]
[362845927,1748488240184,-430.0,0.00019178,2]
[362845929,1748488240194,-432.7953202,0.00019178,2]
[362845931,1748488240208,-1387.6,0.00019178,2]
[362845934,1748488240220,-430.0,0.00019178,2]
[362845936,1748488240231,-405.24497119,0.00019178,2]
[362845938,1748488240244,-430.0,0.00019178,2]
[362845940,1748488240264,-430.0,0.00019178,2]
[362845943,1748488240277,-430.0,0.00019178,2]
[362845945,1748488240289,-430.0,0.00019178,2]
[362845947,1748488240305,-435.03691886,0.00019178,2]
[362845950,1748488240318,-430.0,0.00019178,2]
[362845952,1748488240331,-430.0,0.00019178,2]
[362845954,1748488240343,-320.03326395,0.00019178,2]
[362845957,1748488240354,-488.17,0.00019178,2]
[362845959,1748488240366,-430.0,0.00019178,2]
[362845961,1748488240378,-430.0,0.00019178,2]
[362845963,1748488240390,-430.0,0.00019178,2]
[362845966,1748488240401,-430.0,0.00019178,2]
[362845968,1748488240415,-430.0,0.00019178,2]
[362845971,1748488240427,-430.0,0.00019178,2]
[362845973,1748488240440,-430.0,0.00019178,2]
[362845975,1748488240450,-430.0,0.00019178,2]
[362845977,1748488240460,-430.0,0.00019178,2]
[362845979,1748488240471,-430.0,0.00019178,2]
[362845981,1748488240482,-430.0,0.00019178,2]
[362845984,1748488240494,-430.0,0.00019178,2]
[362845986,1748488240506,-456.79819797,0.00019178,2]
[362845988,1748488240518,-430.0,0.00019178,2]
[362845990,1748488240529,-443.36531859,0.00019178,2]
[362845993,1748488240541,-430.0,0.00019178,2]
[362845995,1748488240555,-430.0,0.00019178,2]
[362845997,1748488240566,-430.0,0.00019178,2]
[362845999,1748488240578,-295.24297421,0.00019178,2]
[362846002,1748488240591,-430.0,0.00019178,2]
[362846004,1748488240601,-430.0,0.00019178,2]
[362846006,1748488240611,-430.0,0.00019178,2]
[362846008,1748488240622,-430.0,0.00019178,2]
[362846010,1748488240632,-430.0,0.00019178,2]
[362846012,1748488240644,-433.88630268,0.00019178,2]
[362846015,1748488240657,-430.0,0.00019178,2]
[362846017,1748488240673,-437.29295589,0.00019178,2]
[362846019,1748488240685,-430.0,0.00019178,2]
[362846021,1748488240696,-430.0,0.00019178,2]
[362846024,1748488240707,-433.18257372,0.00019178,2]
[362846026,1748488240718,-430.0,0.00019178,2]
[362846028,1748488240729,-430.0,0.00019178,2]
[362846030,1748488240741,-430.0,0.00019178,2]
[362846032,1748488240753,-455.63192416,0.00019178,2]
[362846035,1748488240764,-500.0,0.00019178,2]
[362846037,1748488240774,-507.27213145,0.00019178,2]
[362846039,1748488240785,-500.0,0.00019178,2]
[362846041,1748488240795,-506.56287931,0.00019178,2]
[362846042,1748488240812,-438.91441803,0.00019178,2]
[362846043,1748488240832,-436.61590364,0.00019178,2]
[362846045,1748488240852,-435.61415668,0.00019178,2]
[362846046,1748488240863,-447.28989834,0.00019178,2]
[362846047,1748488240874,-418.28719123,0.00019178,2]
[362846048,1748488240886,-402.49150406,0.00019178,2]
[362846049,1748488240896,-430.0,0.00019178,2]
[362846050,1748488240907,-435.43897391,0.00019178,2]
[362846051,1748488240918,-430.0,0.00019178,2]
[362846052,1748488240930,-441.46416664,0.00019178,2]
[362846053,1748488240941,-442.72482161,0.00019178,2]
[362846054,1748488240952,-430.0,0.00019178,2]
[362846055,1748488240963,-435.487845,0.00019178,2]
[362846056,1748488240974,-1529.14,0.00019178,2]
[362846057,1748488240984,-430.0,0.00019178,2]
[362846058,1748488240995,-430.0,0.00019178,2]
[362846059,1748488241006,-430.0,0.00019178,2]
[362846060,1748488241017,-433.76464637,0.00019178,2]
[362846061,1748488241028,-430.0,0.00019178,2]
[362846062,1748488241039,-434.22804947,0.00019178,2]
[362846063,1748488241050,-430.0,0.00019178,2]
[362846064,1748488241062,-430.0,0.00019178,2]
[362846065,1748488241074,-435.82567579,0.00019178,2]
[362846066,1748488241084,-430.0,0.00019178,2]
[362846067,1748488241095,-334.51930767,0.00019178,2]
[362846068,1748488241106,-430.0,0.00019178,2]
[362846069,1748488241118,-430.0,0.00019178,2]
[362846070,1748488241129,-430.0,0.00019178,2]
[362846071,1748488241143,-403.0478243,0.00019178,2]
[362846072,1748488241154,-1145.48,0.00019178,2]
[362846073,1748488241165,-430.0,0.00019178,2]
[362846074,1748488241176,-441.50798249,0.00019178,2]
[362846075,1748488241187,-456.10802098,0.00019178,2]
[362846076,1748488241197,-457.59661249,0.00019178,2]
[362846077,1748488241208,-430.0,0.00019178,2]
[362846078,1748488241218,-430.91064601,0.00019178,2]
[362846079,1748488241229,-431.78962197,0.00019178,2]
[362846080,1748488241240,-430.0,0.00019452,2]
[362846081,1748488241250,-305.5106063,0.00019452,2]
[362846082,1748488241261,-430.0,0.00019452,2]
[362846083,1748488241272,-430.0,0.00019452,2]
[362846084,1748488241283,-430.0,0.00019452,2]
[362846085,1748488241294,-430.0,0.00019452,2]
[362846086,1748488241308,-430.0,0.00019452,2]
[362846087,1748488241319,-436.55804124,0.00019452,2]
[362846088,1748488241330,-430.0,0.00019452,2]
[362846089,1748488241342,-453.1165668,0.00019452,2]
[362846090,1748488241353,-442.91471594,0.00019452,2]
[362846091,1748488241364,-458.88582551,0.00019452,2]
[362846092,1748488241375,-401.10380602,0.00019452,2]
[362846093,1748488241386,-450.71906561,0.00019452,2]
[362846094,1748488241398,-461.18935211,0.00019452,2]
[362846095,1748488241409,-495.78727679,0.00019452,2]
[362846096,1748488241420,-430.0,0.00019452,2]
[362846097,1748488241431,-430.0,0.00019452,2]
[362846098,1748488241442,-202.01183658,0.00019452,2]
[362846099,1748488241581,-430.0,0.00019452,2]
[362846100,1748488241597,-430.0,0.00019452,2]
[362846101,1748488241606,-430.0,0.00019452,2]
[362846102,1748488241615,-430.0,0.00019452,2]
[362846103,1748488241624,-465.15,0.00019452,2]
[362846104,1748488241634,-430.0,0.00019452,2]
[362846105,1748488241643,-430.0,0.00019452,2]
[362846106,1748488241653,-443.1066143,0.00019452,2]
[362846107,1748488241666,-454.45763877,0.00019452,2]
[362846108,1748488241675,-629.73,0.00019452,2]
[362846109,1748488241685,-430.0,0.00019452,2]
[362846110,1748488241695,-430.0,0.00019452,2]
[362846111,1748488241704,-429.26509159,0.00019452,2]
[362846112,1748488241713,-437.00274578,0.00019452,2]
[362846113,1748488241723,-430.0,0.00019452,2]
[362846114,1748488241732,-496.17228419,0.00019452,2]
[362846115,1748488241742,-430.0,0.00019452,2]
[362846116,1748488241751,-430.0,0.00019452,2]
[362846117,1748488241762,-430.0,0.00019452,2]
[362846118,1748488241771,-409.19657773,0.00019452,2]
[362846119,1748488241780,-430.0,0.00019452,2]
[362846120,1748488241790,-430.0,0.00019452,2]
[362846121,1748488241799,-430.0,0.00019452,2]
[362846122,1748488241811,-436.51738418,0.00019452,2]
[362846123,1748488241820,-2187.68,0.00019452,2]
[362846124,1748488241829,-430.0,0.00019452,2]
[362846125,1748488241839,-429.99124419,0.00019452,2]
[362846126,1748488241848,-667.94,0.00019452,2]
[362846127,1748488241857,-430.0,0.00019452,2]
[362846128,1748488241867,-551.80834776,0.00019452,2]
[362846129,1748488241876,-636.41,0.00019452,2]
[362846130,1748488241886,-430.0,0.00019452,2]
[362846131,1748488241896,-434.78601092,0.00019452,2]
[362846132,1748488241906,-278.84975378,0.00019452,2]
[362846133,1748488241917,-437.44444621,0.00019452,2]
[362846134,1748488241927,-540.72978913,0.00019452,2]
[362846135,1748488241936,-439.62741147,0.00019452,2]
[362846136,1748488241946,-430.0,0.00019452,2]
[362846137,1748488241956,-452.6,0.00019452,2]
[362846138,1748488241965,-799.61,0.00019452,2]
[362846139,1748488241975,-760.73,0.00019452,2]
[362846140,1748488241984,-350.28533695,0.00019452,2]
[362846141,1748488241993,-439.08250887,0.00019452,2]
[362846142,1748488242003,-440.32803403,0.00019452,2]
[362846143,1748488242012,-430.0,0.00019452,2]
[362846144,1748488242022,-446.25090367,0.00019452,2]
[362846145,1748488242031,-436.73781771,0.00019452,2]
[362846146,1748488242041,-439.74374302,0.00019452,2]
[362846147,1748488242050,-430.0,0.00019452,2]
[362846148,1748488242061,-430.0,0.00019452,2]
[362846149,1748488242070,-441.35,0.00019452,2]
[362846150,1748488242079,-536.09701348,0.00019452,2]
[362846151,1748488242089,-430.0,0.00019452,2]
[362846152,1748488242099,-430.0,0.00019452,2]
[362846153,1748488242108,-430.0,0.00019452,2]
[362846154,1748488242117,-244.96563038,0.00019452,2]
[362846155,1748488242126,-430.0,0.00019452,2]
[362846156,1748488242135,-430.0,0.00019452,2]
[362846157,1748488242145,-1387.6,0.00019452,2]
[362846158,1748488242155,-430.0,0.00019452,2]
[362846159,1748488242164,-430.0,0.00019452,2]
[362846160,1748488242173,-430.0,0.00019452,2]
[362846161,1748488242182,-440.19622858,0.00019452,2]
[362846162,1748488242192,-430.0,0.00019452,2]
[362846163,1748488242201,-439.32722756,0.00019452,2]
[362846164,1748488242211,-434.80726622,0.00019452,2]
[362846165,1748488242220,-488.17,0.00019452,2]
[362846166,1748488242229,-356.7367605,0.00019452,2]
[362846167,1748488242238,-315.64459367,0.00019452,2]
[362846168,1748488242245,-436.5171141,0.00019452,2]
[362846169,1748488242253,-439.96448648,0.00019452,2]
[362846170,1748488242262,-430.0,0.00019452,2]
[362846171,1748488242270,-439.67829286,0.00019452,2]
[362846172,1748488242279,-430.0,0.00019452,2]
[362846173,1748488242287,-430.0,0.00019452,2]
[362846174,1748488242297,-436.79731227,0.00019452,2]
[362846175,1748488242308,-430.0,0.00019452,2]
[362846176,1748488242317,-430.0,0.00019452,2]
[362846177,1748488242327,-430.0,0.00019452,2]
[362846178,1748488242336,-456.66855038,0.00019452,2]
[362846179,1748488242346,-430.0,0.00019452,2]
[362846180,1748488242355,-438.95746794,0.00019452,2]
[362846181,1748488242365,-486.16070835,0.00019452,2]
[362846182,1748488242374,-430.0,0.00019452,2]
[362846183,1748488242384,-430.0,0.00019452,2]
[362846184,1748488242394,-430.0,0.00019452,2]
[362846185,1748488242403,-430.0,0.00019452,2]
[362846186,1748488242413,-430.0,0.00019452,2]
[362846187,1748488242423,-430.0,0.00019452,2]
[362846188,1748488242432,-430.0,0.00019452,2]
[362846189,1748488242441,-433.83494658,0.00019452,2]
[362846190,1748488242450,-430.0,0.00019452,2]
[362846191,1748488242459,-430.0,0.00019452,2]
[362846192,1748488242469,-430.0,0.00019452,2]
[362846193,1748488242478,-1529.14,0.00019452,2]
[362846194,1748488242487,-430.0,0.00019452,2]
[362846195,1748488242498,-430.0,0.00019452,2]
[362846196,1748488242508,-430.0,0.00019452,2]
[362846197,1748488242517,-430.0,0.00019452,2]
[362846198,1748488242527,-441.09292531,0.00019452,2]
[362846199,1748488242537,-430.0,0.00019452,2]
[362846201,1748488242546,-430.0,0.00019452,2]
[362846203,1748488242558,-430.0,0.00019452,2]
[362846205,1748488242567,-430.0,0.00019452,2]
[362846207,1748488242576,-430.0,0.00019452,2]
[362846209,1748488242586,-1145.48,0.00019452,2]
[362846210,1748488242596,-578.8587512,0.00019452,2]
[362846212,1748488242605,-430.0,0.00019452,2]
[362846214,1748488242614,-500.0,0.00019577,2]
[362846215,1748488242624,-500.0,0.00019589,2]
[362846216,1748488242633,-500.74127578,0.00019637,2]
[362846217,1748488242642,-500.0,0.00019637,2]
[362846219,1748488242651,-1004.82481693,0.00019721,2]
[362846220,1748488242664,-430.0,0.00019726,2]
[362846222,1748488242675,-430.0,0.00019726,2]
[362846223,1748488242684,-437.93236832,0.00019726,2]
[362846224,1748488242694,-414.67554306,0.00019726,2]
[362846225,1748488242705,-327.74782399,0.00019726,2]
[362846226,1748488242715,-446.16642762,0.00019726,2]
[362846227,1748488242725,-430.0,0.00019726,2]
[362846228,1748488242734,-430.0,0.00019726,2]
[362846229,1748488242745,-430.0,0.00019726,2]
[362846230,1748488242754,-430.0,0.00019726,2]
[362846231,1748488242763,-430.0,0.00019726,2]
[362846232,1748488242773,-629.73,0.00019726,2]
[362846233,1748488242783,-266.27856431,0.00019726,2]
[362846234,1748488242792,-416.38726602,0.00019726,2]
[362846235,1748488242802,-465.00122026,0.00019726,2]
[362846236,1748488242812,-430.0,0.00019726,2]
[362846237,1748488242821,-2187.68,0.00019726,2]
[362846238,1748488242831,-430.0,0.00019726,2]
[362846239,1748488242841,-667.94,0.00019726,2]
[362846240,1748488242851,-430.0,0.00019726,2]
[362846241,1748488242860,-636.41,0.00019726,2]
[362846242,1748488242870,-430.0,0.00019726,2]
[362846243,1748488242879,-430.0,0.00019726,2]
[362846244,1748488242889,-452.6,0.00019726,2]
[362846245,1748488242899,-799.61,0.00019726,2]
[362846247,1748488242909,-760.73,0.00019726,2]
[362846249,1748488242918,-430.0,0.00019726,2]
[362846251,1748488242927,-430.0,0.00019726,2]
[362846253,1748488242937,-430.0,0.00019726,2]
[362846255,1748488242947,-441.35,0.00019726,2]
[362846257,1748488242956,-189.60779744,0.00019726,2]
[362846259,1748488242966,-430.0,0.00019726,2]
[362846260,1748488242976,-430.0,0.00019726,2]
[362846262,1748488242985,-430.0,0.00019726,2]
[362846264,1748488242995,-443.2320868,0.00019726,2]
[362846265,1748488243004,-1387.6,0.00019726,2]
[362846267,1748488243014,-430.0,0.00019726,2]
[362846269,1748488243023,-467.56721144,0.00019726,2]
[362846271,1748488243033,-430.0,0.00019726,2]
[362846273,1748488243043,-430.0,0.00019726,2]
[362846275,1748488243053,-488.17,0.00019726,2]
[362846277,1748488243064,-430.0,0.00019726,2]
[362846279,1748488243073,-430.0,0.00019726,2]
[362846281,1748488243083,-430.0,0.00019726,2]
[362846283,1748488243092,-430.0,0.00019726,2]
[362846285,1748488243102,-430.0,0.00019726,2]
[362846287,1748488243120,-444.89240907,0.00019726,2]
[362846291,1748488243140,-430.0,0.00019726,2]
[362846295,1748488243149,-430.0,0.00019726,2]
[362846299,1748488243159,-430.0,0.00019726,2]
[362846304,1748488243168,-430.0,0.00019726,2]
[362846308,1748488243177,-430.0,0.00019726,2]
[362846312,1748488243187,-430.0,0.00019726,2]
[362846316,1748488243196,-430.0,0.00019726,2]
[362846319,1748488243206,-430.0,0.00019726,2]
[362846322,1748488243216,-430.0,0.00019726,2]
[362846325,1748488243225,-430.0,0.00019726,2]
[362846328,1748488243234,-1529.14,0.00019726,2]
[362846330,1748488243243,-430.0,0.00019726,2]
[362846332,1748488243253,-430.0,0.00019726,2]
[362846334,1748488243263,-430.0,0.00019726,2]
[362846336,1748488243272,-430.0,0.00019726,2]
[362846338,1748488243282,-430.0,0.00019726,2]
[362846340,1748488243291,-430.0,0.00019726,2]
[362846342,1748488243300,-430.0,0.00019726,2]
[362846344,1748488243311,-430.0,0.00019726,2]
[362846346,1748488243320,-1145.48,0.00019726,2]
[362846348,1748488243329,-1000.0,0.000198,2]
[362846350,1748488243339,-405.47146442,0.000199,2]
[362846352,1748488243348,-430.0,0.0002,2]
[362846354,1748488243358,-430.0,0.0002,2]
[362846356,1748488243367,-430.0,0.0002,2]
[362846358,1748488243376,-362.28775627,0.0002,2]
[362846360,1748488243387,-430.0,0.0002,2]
[362846362,1748488243396,-430.0,0.0002,2]
[362846364,1748488243405,-430.0,0.0002,2]
[362846366,1748488243415,-629.73,0.0002,2]
[362846368,1748488243424,-430.0,0.0002,2]
[362846369,1748488243433,-2187.68,0.0002,2]
[362846370,1748488243443,-430.0,0.0002,2]
[362846371,1748488243452,-667.94,0.0002,2]
[362846372,1748488243461,-430.0,0.0002,2]
[362846373,1748488243471,-636.41,0.0002,2]
[362846374,1748488243480,-430.0,0.0002,2]
[362846375,1748488243490,-339.14457164,0.0002,2]
[362846376,1748488243500,-452.6,0.0002,2]
[362846377,1748488243511,-799.61,0.0002,2]
[362846378,1748488243522,-760.73,0.0002,2]
[362846379,1748488243533,-430.0,0.0002,2]
[362846380,1748488243542,-430.0,0.0002,2]
[362846381,1748488243552,-430.0,0.0002,2]
[362846382,1748488243562,-441.35,0.0002,2]
[362846383,1748488243572,-430.0,0.0002,2]
[362846384,1748488243581,-430.0,0.0002,2]
[362846385,1748488243591,-1387.6,0.0002,2]
[362846386,1748488243602,-430.0,0.0002,2]
[362846387,1748488243612,-430.0,0.0002,2]
[362846388,1748488243622,-430.0,0.0002,2]
[362846389,1748488243632,-488.17,0.0002,2]
[362846390,1748488243641,-430.0,0.0002,2]
[362846391,1748488243650,-430.0,0.0002,2]
[362846392,1748488243664,-430.0,0.0002,2]
[362846393,1748488243675,-430.0,0.0002,2]
[362846394,1748488243684,-430.0,0.0002,2]
[362846395,1748488243694,-430.0,0.0002,2]
[362846396,1748488243704,-430.0,0.0002,2]
[362846397,1748488243714,-430.0,0.0002,2]
[362846398,1748488243723,-430.0,0.0002,2]
[362846399,1748488243733,-430.0,0.0002,2]
[362846400,1748488243742,-430.0,0.0002,2]
[362846401,1748488243752,-430.0,0.0002,2]
[362846402,1748488243761,-430.0,0.0002,2]
[362846403,1748488243774,-1529.14,0.0002,2]
[362846404,1748488243783,-430.0,0.0002,2]
[362846405,1748488243792,-430.0,0.0002,2]
[362846406,1748488243802,-402.6500428,0.0002,2]
[362846407,1748488243813,-430.0,0.0002,2]
[362846408,1748488243823,-430.0,0.0002,2]
[362846409,1748488243833,-430.0,0.0002,2]
[362846410,1748488243842,-430.0,0.0002,2]
[362846411,1748488243853,-1145.48,0.0002,2]
[362846412,1748488243862,-1000.0,0.00020068,2]
[362846413,1748488243872,-405.47146441,0.00020072,2]
[362846414,1748488243881,-500.0,0.0002015,2]
[362846415,1748488243891,-405.47146441,0.00020245,2]
[362846416,1748488243901,-430.0,0.00020273,2]
[362846417,1748488243910,-159.14003444,0.00020273,2]
[362846418,1748488243920,-430.0,0.00020273,2]
[362846419,1748488243930,-430.0,0.00020273,2]
[362846420,1748488243939,-430.0,0.00020273,2]
[362846421,1748488243949,-430.0,0.00020273,2]
[362846422,1748488243958,-629.73,0.00020273,2]
[362846423,1748488243968,-430.0,0.00020273,2]
[362846424,1748488243977,-2187.68,0.00020273,2]
[362846425,1748488243987,-517.75836595,0.00020273,2]
[362846426,1748488243997,-667.94,0.00020273,2]
[362846427,1748488244006,-430.0,0.00020273,2]
[362846428,1748488244016,-636.41,0.00020273,2]
[362846429,1748488244025,-430.0,0.00020273,2]
[362846430,1748488244035,-452.6,0.00020273,2]
[362846431,1748488244044,-799.61,0.00020273,2]
[362846432,1748488244055,-760.73,0.00020273,2]
[362846433,1748488244066,-245.22146804,0.00020273,2]
[362846434,1748488244075,-430.0,0.00020273,2]
[362846435,1748488244084,-441.35,0.00020273,2]
[362846436,1748488244094,-430.0,0.00020273,2]
[362846437,1748488244104,-430.0,0.00020273,2]
[362846438,1748488244113,-1387.6,0.00020273,2]
[362846439,1748488244123,-430.0,0.00020273,2]
[362846440,1748488244132,-430.0,0.00020273,2]
[362846441,1748488244141,-430.0,0.00020273,2]
[362846442,1748488244151,-488.17,0.00020273,2]
[362846443,1748488244161,-430.0,0.00020273,2]
[362846444,1748488244170,-430.0,0.00020273,2]
[362846445,1748488244179,-430.0,0.00020273,2]
[362846446,1748488244189,-430.0,0.00020273,2]
[362846447,1748488244199,-430.0,0.00020273,2]
[362846448,1748488244208,-430.0,0.00020273,2]
[362846449,1748488244218,-430.0,0.00020273,2]
[362846450,1748488244228,-430.0,0.00020273,2]
[362846451,1748488244237,-367.19109472,0.00020273,2]
[362846452,1748488244247,-430.0,0.00020273,2]
[362846453,1748488244256,-430.0,0.00020273,2]
[362846454,1748488244265,-430.0,0.00020273,2]
[362846455,1748488244275,-430.0,0.00020273,2]
[362846456,1748488244284,-1529.14,0.00020273,2]
[362846457,1748488244391,-430.0,0.00020273,2]
[362846458,1748488244401,-430.0,0.00020273,2]
[362846459,1748488244411,-430.0,0.00020273,2]
[362846460,1748488244420,-500.69,0.00020273,2]
[362846461,1748488244430,-430.0,0.00020273,2]
[362846462,1748488244439,-430.0,0.00020273,2]
[362846463,1748488244448,-1145.48,0.00020273,2]
[362846464,1748488244458,-405.47146441,0.00020417,3]
[362846465,1748488244467,-4763.59928519,0.00020436,2]
[362846466,1748488244476,-430.0,0.00020547,2]
[362846467,1748488244486,-430.0,0.00020547,2]
[362846468,1748488244496,-430.0,0.00020547,2]
[362846469,1748488244505,-430.0,0.00020547,2]
[362846470,1748488244515,-430.0,0.00020547,2]
[362846471,1748488244524,-629.73,0.00020547,2]
[362846472,1748488244534,-430.0,0.00020547,2]
[362846473,1748488244543,-2187.68,0.00020547,2]
[362846474,1748488244553,-667.94,0.00020547,2]
[362846475,1748488244564,-430.0,0.00020547,2]
[362846476,1748488244574,-636.41,0.00020547,2]
[362846477,1748488244583,-430.0,0.00020547,2]
[362846478,1748488244593,-452.6,0.00020547,2]
[362846479,1748488244602,-799.61,0.00020547,2]
[362846480,1748488244611,-760.73,0.00020547,2]
[362846481,1748488244620,-430.0,0.00020547,2]
[362846482,1748488244630,-441.35,0.00020547,2]
[362846483,1748488244639,-430.0,0.00020547,2]
[362846484,1748488244650,-430.0,0.00020547,2]
[362846485,1748488244661,-1387.6,0.00020547,2]
[362846486,1748488244671,-430.0,0.00020547,2]
[362846487,1748488244680,-430.0,0.00020547,2]
[362846488,1748488244689,-430.0,0.00020547,2]
[362846489,1748488244700,-488.17,0.00020547,2]
[362846490,1748488244710,-430.0,0.00020547,2]
[362846491,1748488244719,-430.0,0.00020547,2]
[362846492,1748488244729,-430.0,0.00020547,2]
[362846493,1748488244740,-430.0,0.00020547,2]
[362846494,1748488244751,-430.0,0.00020547,2]
[362846495,1748488244760,-430.0,0.00020547,2]
[362846496,1748488244769,-430.0,0.00020547,2]
[362846497,1748488244779,-430.0,0.00020547,2]
[362846498,1748488244788,-430.0,0.00020547,2]
[362846499,1748488244798,-430.0,0.00020547,2]
[362846500,1748488244807,-430.0,0.00020547,2]
[362846501,1748488244817,-430.0,0.00020547,2]
[362846502,1748488244827,-1529.14,0.00020547,2]
[362846503,1748488244836,-430.0,0.00020547,2]
[362846504,1748488244846,-430.0,0.00020547,2]
[362846505,1748488244855,-430.0,0.00020547,2]
[362846506,1748488244864,-358.55330177,0.00020547,2]
[362846507,1748488244874,-420.40525415,0.00020547,2]
[362846508,1748488244883,-1145.48,0.00020547,2]
[362846509,1748488244892,-405.47146441,0.0002059,3]
[362846510,1748488244902,-507.286,0.00020712,2]
[362846511,1748488244911,-405.47146441,0.00020762,3]
[362846512,1748488244920,-1000.0,0.000208,3]
[362846513,1748488244930,-430.0,0.00020821,2]
[362846514,1748488244939,-430.0,0.00020821,2]
[362846515,1748488244949,-401.27992961,0.00020821,2]
[362846516,1748488244959,-430.0,0.00020821,2]
[362846517,1748488244968,-430.0,0.00020821,2]
[362846518,1748488244976,-629.73,0.00020821,2]
[362846519,1748488244986,-430.0,0.00020821,2]
[362846520,1748488244996,-2187.68,0.00020821,2]
[362846521,1748488245005,-667.94,0.00020821,2]
[362846522,1748488245015,-430.0,0.00020821,2]
[362846523,1748488245024,-636.41,0.00020821,2]
[362846524,1748488245034,-430.0,0.00020821,2]
[362846525,1748488245043,-452.6,0.00020821,2]
[362846526,1748488245052,-799.61,0.00020821,2]
[362846527,1748488245063,-760.73,0.00020821,2]
[362846528,1748488245072,-430.0,0.00020821,2]
[362846529,1748488245081,-441.35,0.00020821,2]
[362846530,1748488245090,-430.0,0.00020821,2]
[362846531,1748488245099,-167.52838037,0.00020821,2]
[362846532,1748488245108,-1387.6,0.00020821,2]